[Event "*** Titled Tuesday Blitz"]
[Site "Chess.com"]
[Date "2018.07.03"]
[Round "3"]
[White "abhijeetgupta1016"]
[Black "murmah2003"]
[Result "1-0"]
[WhiteElo "2816"]
[BlackElo "2623"]
[TimeControl "180+2"]
[EndTime "13:38:23 PDT"]
[Termination "abhijeetgupta1016 won by resignation"]

1. d4 {[%clk 0:03:01.9]} 1... d5 {[%clk 0:02:57.8]} 2. Bf4 {[%clk 0:03:01]} 2...
Nf6 {[%clk 0:02:55.3]} 3. e3 {[%clk 0:03:01.3]} 3... g6 {[%clk 0:02:53.7]} 4.
Nf3 {[%clk 0:03:00.1]} 4... Bg7 {[%clk 0:02:54.9]} 5. h3 {[%clk 0:03:01.5]} 5...
O-O {[%clk 0:02:55.6]} 6. Be2 {[%clk 0:02:58.4]} 6... c5 {[%clk 0:02:53]} 7. c3
{[%clk 0:02:53]} 7... b6 {[%clk 0:02:48.4]} 8. O-O {[%clk 0:02:53]} 8... Bb7
{[%clk 0:02:45.5]} 9. a4 {[%clk 0:02:53.5]} 9... Nc6 {[%clk 0:02:42.9]} 10. Nbd2
{[%clk 0:02:48.2]} 10... Re8 {[%clk 0:02:38.3]} 11. Ne5 {[%clk 0:02:48.7]} 11...
Nxe5 {[%clk 0:02:23.2]} 12. Bxe5 {[%clk 0:02:50.6]} 12... Nd7 {[%clk 0:02:24.7]}
13. Bxg7 {[%clk 0:02:44.9]} 13... Kxg7 {[%clk 0:02:26.6]} 14. a5 {[%clk
0:02:43.4]} 14... e5 {[%clk 0:02:15.8]} 15. Bb5 {[%clk 0:02:40.1]} 15... a6
{[%clk 0:01:14.6]} 16. Bxd7 {[%clk 0:02:37.5]} 16... Qxd7 {[%clk 0:01:16.5]} 17.
axb6 {[%clk 0:02:34.7]} 17... cxd4 {[%clk 0:01:17.5]} 18. exd4 {[%clk
0:02:22.1]} 18... exd4 {[%clk 0:01:17.7]} 19. Nb3 {[%clk 0:02:22.7]} 19... dxc3
{[%clk 0:01:15]} 20. Qd4+ {[%clk 0:02:22.9]} 20... Kg8 {[%clk 0:01:14.6]} 21.
bxc3 {[%clk 0:02:24.5]} 21... Re4 {[%clk 0:01:12.9]} 22. Nc5 {[%clk 0:01:57.5]}
22... Rxd4 {[%clk 0:01:04.5]} 23. Nxd7 {[%clk 0:01:58.5]} 23... Rc4 {[%clk
0:01:06]} 24. Rfe1 {[%clk 0:01:59.5]} 24... Rxc3 {[%clk 0:00:27.8]} 25. Re7
{[%clk 0:01:58.4]} 25... d4 {[%clk 0:00:29.2]} 26. Ne5 {[%clk 0:01:19.4]} 26...
Bd5 {[%clk 0:00:27.8]} 27. b7 {[%clk 0:01:17.9]} 27... Rb8 {[%clk 0:00:24]} 28.
Nd7 {[%clk 0:01:17.5]} 28... Rxb7 {[%clk 0:00:16.3]} 29. Nf6+ {[%clk 0:01:18.3]}
29... Kg7 {[%clk 0:00:17.8]} 30. Nxd5 {[%clk 0:01:18.7]} 30... Rxe7 {[%clk
0:00:19.4]} 31. Nxe7 {[%clk 0:01:20.1]} 31... d3 {[%clk 0:00:20]} 32. Nd5 {[%clk
0:01:20.7]} 32... Rc5 {[%clk 0:00:13.2]} 33. Ne3 {[%clk 0:01:14.1]} 33... a5
{[%clk 0:00:13.4]} 34. Kf1 {[%clk 0:01:12.8]} 34... Rb5 {[%clk 0:00:10.9]} 35.
Rd1 {[%clk 0:01:08.7]} 35... Rb3 {[%clk 0:00:07.4]} 36. Ke1 {[%clk 0:01:04.8]}
36... a4 {[%clk 0:00:08.3]} 37. Ra1 {[%clk 0:01:04.7]} 37... a3 {[%clk
0:00:08.5]} 38. Nc4 {[%clk 0:00:58.5]} 38... a2 {[%clk 0:00:04.3]} 39. Rxa2
{[%clk 0:00:56.1]} 39... Rb1+ {[%clk 0:00:03.5]} 40. Kd2 {[%clk 0:00:57]} 40...
Rg1 {[%clk 0:00:05.4]} 41. g3 {[%clk 0:00:56.6]} 41... g5 {[%clk 0:00:04.1]} 42.
Ne3 {[%clk 0:00:53.4]} 42... Rh1 {[%clk 0:00:03.2]} 43. Ra6 {[%clk 0:00:53.3]}
43... f6 {[%clk 0:00:02.4]} 44. Kxd3 {[%clk 0:00:48.9]} 44... Rxh3 {[%clk
0:00:02.3]} 45. Ke4 {[%clk 0:00:50.5]} 45... Rh2 {[%clk 0:00:03.4]} 46. Nf5+
{[%clk 0:00:49.4]} 46... Kg6 {[%clk 0:00:03.6]} 47. f4 {[%clk 0:00:42.5]} 47...
Re2+ {[%clk 0:00:04]} 48. Kf3 {[%clk 0:00:42.2]} 48... Rb2 {[%clk 0:00:03.9]}
49. Ne3 {[%clk 0:00:41.2]} 49... gxf4 {[%clk 0:00:03.9]} 50. gxf4 {[%clk
0:00:41.8]} 50... h5 {[%clk 0:00:05.5]} 51. Nd5 {[%clk 0:00:41.6]} 51... Rb3+
{[%clk 0:00:05.3]} 52. Ke4 {[%clk 0:00:42.5]} 52... h4 {[%clk 0:00:04.5]} 53.
Rxf6+ {[%clk 0:00:43.4]} 53... Kg7 {[%clk 0:00:03.2]} 54. Rf5 {[%clk 0:00:39.7]}
54... Kg6 {[%clk 0:00:02.2]} 55. Rg5+ {[%clk 0:00:40.1]} 55... Kh6 {[%clk
0:00:03.5]} 56. Ne3 {[%clk 0:00:38.3]} 56... h3 {[%clk 0:00:03.3]} 57. Ng4+
{[%clk 0:00:35.8]} 57... Kh7 {[%clk 0:00:04.1]} 58. Rh5+ {[%clk 0:00:37]} 58...
Kg6 {[%clk 0:00:05.3]} 59. Rh6+ {[%clk 0:00:37.7]} 59... Kg7 {[%clk 0:00:06]}
60. Rh4 {[%clk 0:00:38.4]} 60... Rg3 {[%clk 0:00:05.6]} 61. Kf5 {[%clk
0:00:37.1]} 61... Kf7 {[%clk 0:00:03.5]} 62. Nf2 {[%clk 0:00:35.1]} 1-0

[Event "*** Titled Tuesday Blitz"]
[Site "Chess.com"]
[Date "2018.07.03"]
[Round "3"]
[White "Genghis_K"]
[Black "Kaphrep"]
[Result "1/2-1/2"]
[WhiteElo "2705"]
[BlackElo "2671"]
[TimeControl "180+2"]
[EndTime "13:38:29 PDT"]
[Termination "Game drawn by agreement"]

1. e4 {[%clk 0:03:00.5]} 1... g6 {[%clk 0:02:54.9]} 2. d4 {[%clk 0:03:00.2]}
2... Bg7 {[%clk 0:02:56.2]} 3. Nf3 {[%clk 0:03:01.8]} 3... c6 {[%clk 0:02:51.8]}
4. Nc3 {[%clk 0:03:00]} 4... d5 {[%clk 0:02:52.7]} 5. h3 {[%clk 0:03:01.1]} 5...
dxe4 {[%clk 0:02:53.9]} 6. Nxe4 {[%clk 0:03:02.4]} 6... Nf6 {[%clk 0:02:55.8]}
7. Nxf6+ {[%clk 0:03:03.5]} 7... exf6 {[%clk 0:02:57.7]} 8. Bc4 {[%clk
0:03:04.6]} 8... O-O {[%clk 0:02:58]} 9. O-O {[%clk 0:03:05]} 9... a5 {[%clk
0:02:58]} 10. a4 {[%clk 0:03:05.7]} 10... Na6 {[%clk 0:02:57.8]} 11. Re1 {[%clk
0:03:06.1]} 11... Nc7 {[%clk 0:02:58.2]} 12. Bf4 {[%clk 0:03:04.7]} 12... Nd5
{[%clk 0:02:58.9]} 13. Bg3 {[%clk 0:03:05.7]} 13... Be6 {[%clk 0:02:56.5]} 14.
Bb3 {[%clk 0:03:06.7]} 14... Re8 {[%clk 0:02:53.2]} 15. c3 {[%clk 0:03:05.7]}
15... Bh6 {[%clk 0:02:26.9]} 16. Nd2 {[%clk 0:03:02]} 16... f5 {[%clk
0:02:00.1]} 17. Be5 {[%clk 0:02:54.3]} 17... f6 {[%clk 0:01:38.3]} 18. Bh2
{[%clk 0:02:54.9]} 18... Bf7 {[%clk 0:01:36.8]} 19. Rxe8+ {[%clk 0:02:54]} 19...
Qxe8 {[%clk 0:01:38.7]} 20. Nc4 {[%clk 0:02:53.6]} 20... Bf8 {[%clk 0:01:18.4]}
21. Nd6 {[%clk 0:02:41.4]} 21... Bxd6 {[%clk 0:01:18.8]} 22. Bxd6 {[%clk
0:02:43]} 22... Nb6 {[%clk 0:01:11.9]} 23. Bc7 {[%clk 0:02:11.3]} 23... Nc4
{[%clk 0:01:03.4]} 24. Bxc4 {[%clk 0:01:44.8]} 24... Bxc4 {[%clk 0:01:03.8]} 25.
b3 {[%clk 0:01:46.4]} 25... Bf7 {[%clk 0:00:58.7]} 26. c4 {[%clk 0:01:47.1]}
26... Qe7 {[%clk 0:00:56.5]} 27. Bb6 {[%clk 0:01:45.9]} 27... f4 {[%clk
0:00:28.7]} 28. Qd2 {[%clk 0:01:31.7]} 28... f3 {[%clk 0:00:29.3]} 29. gxf3
{[%clk 0:01:27.4]} 29... Qe6 {[%clk 0:00:27.6]} 30. Re1 {[%clk 0:01:19.8]} 30...
Qxh3 {[%clk 0:00:22.2]} 31. Qf4 {[%clk 0:01:21.4]} 31... Kg7 {[%clk 0:00:12.5]}
32. Re7 {[%clk 0:01:07.6]} 32... Re8 {[%clk 0:00:12.8]} 33. Rxe8 {[%clk
0:01:05]} 33... Bxe8 {[%clk 0:00:14.7]} 34. Bxa5 {[%clk 0:01:06.3]} 34... Qe6
{[%clk 0:00:06.6]} 35. Bc3 {[%clk 0:01:03.5]} 35... g5 {[%clk 0:00:05.6]} 36. d5
{[%clk 0:00:30.4]} 36... gxf4 {[%clk 0:00:03.5]} 37. dxe6 {[%clk 0:00:31.8]}
37... Bg6 {[%clk 0:00:04.7]} 38. a5 {[%clk 0:00:18.2]} 38... Bc2 {[%clk
0:00:05.7]} 39. b4 {[%clk 0:00:19.4]} 39... Bb3 {[%clk 0:00:06.5]} 40. b5 {[%clk
0:00:11.2]} 40... cxb5 {[%clk 0:00:04.1]} 41. cxb5 {[%clk 0:00:03.1]} 41... Bxe6
{[%clk 0:00:05.1]} 42. a6 {[%clk 0:00:05]} 42... bxa6 {[%clk 0:00:06.3]} 43.
bxa6 {[%clk 0:00:06.9]} 43... Bd5 {[%clk 0:00:07.6]} 44. Kg2 {[%clk 0:00:03.8]}
44... Kg6 {[%clk 0:00:09]} 45. Bd4 {[%clk 0:00:04.6]} 45... Kf5 {[%clk
0:00:10.3]} 46. a7 {[%clk 0:00:06.2]} 46... Ba8 {[%clk 0:00:11.1]} 47. Bc3
{[%clk 0:00:07.6]} 47... h5 {[%clk 0:00:12.1]} 48. Bb2 {[%clk 0:00:08.8]} 48...
h4 {[%clk 0:00:13.5]} 49. Bc3 {[%clk 0:00:10.3]} 49... h3+ {[%clk 0:00:14.7]}
50. Kxh3 {[%clk 0:00:11.9]} 50... Bxf3 {[%clk 0:00:16.2]} 51. Kh4 {[%clk
0:00:13.1]} 51... Ba8 {[%clk 0:00:17.5]} 52. Kh5 {[%clk 0:00:14.3]} 52... Bb7
{[%clk 0:00:18.3]} 53. Kh6 {[%clk 0:00:15.7]} 53... Ba8 {[%clk 0:00:17.7]} 54.
Kg7 {[%clk 0:00:17]} 54... Kg4 {[%clk 0:00:10.2]} 55. Kxf6 {[%clk 0:00:17]}
55... Kf3 {[%clk 0:00:10.9]} 56. Bd4 {[%clk 0:00:17.9]} 56... Ke4 {[%clk
0:00:12.3]} 57. Bb6 {[%clk 0:00:19.1]} 57... Kd5 {[%clk 0:00:13.6]} 58. Bc7
{[%clk 0:00:17.5]} 58... f3 {[%clk 0:00:13.4]} 59. Ke7 {[%clk 0:00:13.5]} 59...
Kc6 {[%clk 0:00:14.3]} 60. Kd8 {[%clk 0:00:14.9]} 60... Kb7 {[%clk 0:00:14.2]}
61. Bb8 {[%clk 0:00:10.8]} 61... Ka6 {[%clk 0:00:15]} 62. Kc7 {[%clk 0:00:09.7]}
62... Be4 {[%clk 0:00:15.8]} 63. Kd6 {[%clk 0:00:09.5]} 63... Kb7 {[%clk
0:00:13.2]} 64. Ke5 {[%clk 0:00:09.5]} 64... Bd3 {[%clk 0:00:14.1]} 65. Kf4
{[%clk 0:00:09.3]} 65... Be2 {[%clk 0:00:15.1]} 66. Ke3 {[%clk 0:00:08.2]} 66...
Ka8 {[%clk 0:00:17]} 67. Kf4 {[%clk 0:00:09.4]} 67... Bd1 {[%clk 0:00:17.3]} 68.
Ke3 {[%clk 0:00:10.1]} 68... Be2 {[%clk 0:00:19.2]} 69. Kf4 {[%clk 0:00:10.8]}
1/2-1/2

[Event "*** Titled Tuesday Blitz"]
[Site "Chess.com"]
[Date "2018.07.03"]
[Round "3"]
[White "Mimsychess"]
[Black "Keures"]
[Result "1/2-1/2"]
[WhiteElo "2290"]
[BlackElo "2139"]
[TimeControl "180+2"]
[EndTime "13:38:30 PDT"]
[Termination "Game drawn by repetition"]

1. e4 {[%clk 0:03:01.9]} 1... e6 {[%clk 0:03:01.1]} 2. d4 {[%clk 0:03:01.7]}
2... d5 {[%clk 0:03:02]} 3. Nd2 {[%clk 0:03:03.3]} 3... Nf6 {[%clk 0:02:59.1]}
4. e5 {[%clk 0:03:04.2]} 4... Ne4 {[%clk 0:03:00.3]} 5. Bd3 {[%clk 0:03:02.2]}
5... Nxd2 {[%clk 0:03:00.9]} 6. Bxd2 {[%clk 0:03:04.1]} 6... c5 {[%clk
0:03:02.2]} 7. c3 {[%clk 0:03:01.4]} 7... Qb6 {[%clk 0:03:02.9]} 8. Nf3 {[%clk
0:02:55]} 8... h6 {[%clk 0:03:00.3]} 9. O-O {[%clk 0:02:37.7]} 9... cxd4 {[%clk
0:02:56.2]} 10. cxd4 {[%clk 0:02:38.6]} 10... Bd7 {[%clk 0:02:57.3]} 11. a3
{[%clk 0:02:24.1]} 11... Bb5 {[%clk 0:02:55.2]} 12. Qe2 {[%clk 0:02:12.8]} 12...
Bxd3 {[%clk 0:02:54.8]} 13. Qxd3 {[%clk 0:02:14.7]} 13... Qa6 {[%clk 0:02:55.1]}
14. Qxa6 {[%clk 0:02:11.5]} 14... Nxa6 {[%clk 0:02:55.9]} 15. Rac1 {[%clk
0:02:11.7]} 15... Kd7 {[%clk 0:02:50.5]} 16. b4 {[%clk 0:02:04.8]} 16... Be7
{[%clk 0:02:47.3]} 17. b5 {[%clk 0:02:04.7]} 17... Nc7 {[%clk 0:02:35.3]} 18. a4
{[%clk 0:02:05.2]} 18... Rac8 {[%clk 0:02:34]} 19. Rc2 {[%clk 0:02:03.6]} 19...
Na8 {[%clk 0:02:34.2]} 20. Rxc8 {[%clk 0:01:38.7]} 20... Rxc8 {[%clk 0:02:33.7]}
21. a5 {[%clk 0:01:39.9]} 21... Rc2 {[%clk 0:02:08.8]} 22. Rb1 {[%clk 0:01:36]}
22... Nc7 {[%clk 0:01:40]} 23. Kf1 {[%clk 0:01:28.7]} 23... b6 {[%clk
0:01:39.4]} 24. axb6 {[%clk 0:01:03.1]} 24... axb6 {[%clk 0:01:40.2]} 25. Ke2
{[%clk 0:01:04.8]} 25... Ra2 {[%clk 0:01:33.4]} 26. Rb3 {[%clk 0:01:01]} 26...
Ra3 {[%clk 0:01:25.7]} 27. Rb2 {[%clk 0:00:57]} 27... Ra4 {[%clk 0:01:25.7]} 28.
Kd3 {[%clk 0:00:55.3]} 28... f6 {[%clk 0:01:21.9]} 29. exf6 {[%clk 0:00:54.1]}
29... Bxf6 {[%clk 0:01:23]} 30. Bf4 {[%clk 0:00:54.7]} 30... Ra5 {[%clk
0:01:05]} 31. Ne5+ {[%clk 0:00:41.8]} 31... Kc8 {[%clk 0:00:37.2]} 32. Rc2
{[%clk 0:00:31.4]} 32... Kb7 {[%clk 0:00:38]} 33. Nc6 {[%clk 0:00:24.2]} 33...
Ra3+ {[%clk 0:00:33.3]} 34. Ke2 {[%clk 0:00:20.9]} 34... Nxb5 {[%clk 0:00:34.3]}
35. Be3 {[%clk 0:00:18.1]} 35... Rc3 {[%clk 0:00:31.7]} 36. Rxc3 {[%clk
0:00:18.7]} 36... Nxc3+ {[%clk 0:00:32.6]} 37. Kd3 {[%clk 0:00:20.6]} 37... Kxc6
{[%clk 0:00:30.9]} 38. Kxc3 {[%clk 0:00:21.9]} 38... Kb5 {[%clk 0:00:31.9]} 39.
Kb3 {[%clk 0:00:22.3]} 39... Ka5 {[%clk 0:00:32.4]} 40. f4 {[%clk 0:00:22.5]}
40... b5 {[%clk 0:00:32.2]} 41. g4 {[%clk 0:00:22.1]} 41... b4 {[%clk
0:00:31.4]} 42. g5 {[%clk 0:00:23.4]} 42... hxg5 {[%clk 0:00:32.6]} 43. fxg5
{[%clk 0:00:24.5]} 43... Be7 {[%clk 0:00:33.9]} 44. h4 {[%clk 0:00:20.9]} 44...
g6 {[%clk 0:00:35.1]} 45. Bf4 {[%clk 0:00:19.4]} 45... Kb5 {[%clk 0:00:33.6]}
46. Be5 {[%clk 0:00:17]} 46... Kc6 {[%clk 0:00:34]} 47. h5 {[%clk 0:00:17.5]}
47... gxh5 {[%clk 0:00:31.3]} 48. g6 {[%clk 0:00:13.6]} 48... Bf8 {[%clk
0:00:28.5]} 49. g7 {[%clk 0:00:14.1]} 49... Bxg7 {[%clk 0:00:29.8]} 50. Bxg7
{[%clk 0:00:15.8]} 50... Kb5 {[%clk 0:00:26.3]} 51. Bf8 {[%clk 0:00:08]} 51...
h4 {[%clk 0:00:25.9]} 52. Bxb4 {[%clk 0:00:08.7]} 52... Kc6 {[%clk 0:00:22.5]}
53. Be1 {[%clk 0:00:06.1]} 53... h3 {[%clk 0:00:21.4]} 54. Bg3 {[%clk
0:00:07.4]} 54... Kd7 {[%clk 0:00:21.7]} 55. Kb4 {[%clk 0:00:06.5]} 55... Ke7
{[%clk 0:00:22.4]} 56. Be5 {[%clk 0:00:06.8]} 56... Kf7 {[%clk 0:00:21.5]} 57.
Kc5 {[%clk 0:00:08]} 57... Kg6 {[%clk 0:00:23.4]} 58. Kd6 {[%clk 0:00:08.5]}
58... Kf5 {[%clk 0:00:25.3]} 59. Kc5 {[%clk 0:00:07]} 59... Ke4 {[%clk
0:00:25.7]} 60. Bh2 {[%clk 0:00:07.8]} 60... Kf5 {[%clk 0:00:25.8]} 61. Kd6
{[%clk 0:00:07.8]} 61... Ke4 {[%clk 0:00:26.9]} 62. Kc5 {[%clk 0:00:08.7]} 62...
Kf5 {[%clk 0:00:27.9]} 63. Bc7 {[%clk 0:00:04]} 63... Ke4 {[%clk 0:00:27.1]} 64.
Bh2 {[%clk 0:00:04]} 64... Kf3 {[%clk 0:00:25]} 65. Kd6 {[%clk 0:00:04.1]} 65...
Ke4 {[%clk 0:00:18.5]} 66. Kc5 {[%clk 0:00:03.9]} 66... Kf5 {[%clk 0:00:19.5]}
67. Kb4 {[%clk 0:00:02.5]} 67... Kg4 {[%clk 0:00:19.8]} 68. Kc5 {[%clk
0:00:03.3]} 68... Kf3 {[%clk 0:00:20.9]} 69. Kd6 {[%clk 0:00:04.5]} 69... Ke4
{[%clk 0:00:22.3]} 70. Kc5 {[%clk 0:00:05.5]} 1/2-1/2

[Event "*** Titled Tuesday Blitz"]
[Site "Chess.com"]
[Date "2018.07.03"]
[Round "3"]
[White "Triumphmate"]
[Black "djogrodek1"]
[Result "0-1"]
[WhiteElo "2220"]
[BlackElo "2476"]
[TimeControl "180+2"]
[EndTime "13:38:42 PDT"]
[Termination "djogrodek1 won by resignation"]

1. e4 {[%clk 0:03:01.9]} 1... c6 {[%clk 0:03:00.8]} 2. d4 {[%clk 0:03:01.5]}
2... d5 {[%clk 0:03:02.7]} 3. Nc3 {[%clk 0:03:02.6]} 3... dxe4 {[%clk
0:03:04.2]} 4. Nxe4 {[%clk 0:03:04.5]} 4... Nf6 {[%clk 0:03:06.1]} 5. Ng3 {[%clk
0:03:04.7]} 5... h5 {[%clk 0:03:06.6]} 6. h4 {[%clk 0:03:00]} 6... Bg4 {[%clk
0:03:07.5]} 7. Be2 {[%clk 0:02:58.3]} 7... Nbd7 {[%clk 0:03:07.3]} 8. Be3 {[%clk
0:02:56.5]} 8... Qc7 {[%clk 0:02:51.9]} 9. Qd2 {[%clk 0:02:56.3]} 9... O-O-O
{[%clk 0:02:49.3]} 10. O-O-O {[%clk 0:02:55.4]} 10... e6 {[%clk 0:02:42.6]} 11.
Nf3 {[%clk 0:02:47.8]} 11... Bd6 {[%clk 0:02:41]} 12. Kb1 {[%clk 0:02:38.1]}
12... Bxg3 {[%clk 0:02:29.9]} 13. fxg3 {[%clk 0:02:38.8]} 13... Ne4 {[%clk
0:02:31.2]} 14. Qc1 {[%clk 0:02:27.5]} 14... Nxg3 {[%clk 0:02:10.3]} 15. Rhe1
{[%clk 0:02:06.3]} 15... Nxe2 {[%clk 0:02:07.4]} 16. Rxe2 {[%clk 0:02:08.2]}
16... Nf6 {[%clk 0:01:55.2]} 17. Bf4 {[%clk 0:02:00.2]} 17... Qa5 {[%clk
0:01:55.5]} 18. Re3 {[%clk 0:01:59.7]} 18... Qf5 {[%clk 0:01:38.4]} 19. Ra3
{[%clk 0:01:57.6]} 19... Nd5 {[%clk 0:01:35.7]} 20. Bh2 {[%clk 0:01:48.6]} 20...
a6 {[%clk 0:01:35.4]} 21. Rdd3 {[%clk 0:01:43.6]} 21... Bxf3 {[%clk 0:01:21.6]}
22. Rxf3 {[%clk 0:01:39.1]} 22... Qg6 {[%clk 0:01:22.8]} 23. Rg3 {[%clk
0:01:35.8]} 23... Qh7 {[%clk 0:01:19.6]} 24. Rab3 {[%clk 0:01:30.6]} 24... Nf6
{[%clk 0:01:13.4]} 25. Qf4 {[%clk 0:01:24.5]} 25... Qe4 {[%clk 0:01:03]} 26.
Qxe4 {[%clk 0:01:06.4]} 26... Nxe4 {[%clk 0:01:04.9]} 27. Rxg7 {[%clk
0:01:07.8]} 27... Nd2+ {[%clk 0:01:04.9]} 28. Kc1 {[%clk 0:01:07.1]} 28... Nxb3+
{[%clk 0:01:06.8]} 29. axb3 {[%clk 0:01:08.3]} 29... Rhg8 {[%clk 0:01:01.1]} 30.
Rxf7 {[%clk 0:01:07.8]} 30... Rd7 {[%clk 0:01:02.7]} 31. Rf6 {[%clk 0:00:55.4]}
31... Rxg2 {[%clk 0:01:01.4]} 32. Be5 {[%clk 0:00:54.8]} 32... Re7 {[%clk
0:00:55.1]} 33. Rh6 {[%clk 0:00:48.7]} 33... Kd7 {[%clk 0:00:53.2]} 34. Rxh5
{[%clk 0:00:48.7]} 34... Rf7 {[%clk 0:00:54.7]} 35. Kb1 {[%clk 0:00:37]} 35...
c5 {[%clk 0:00:52]} 36. dxc5 {[%clk 0:00:30.2]} 36... Kc6 {[%clk 0:00:53.4]} 37.
Bd6 {[%clk 0:00:20.8]} 37... Rf1+ {[%clk 0:00:49]} 38. Ka2 {[%clk 0:00:21.6]}
38... Rxc2 {[%clk 0:00:48.3]} 39. Rh7 {[%clk 0:00:22.9]} 39... Rff2 {[%clk
0:00:46.4]} 40. Rc7+ {[%clk 0:00:19]} 40... Kd5 {[%clk 0:00:46.8]} 41. Rxb7
{[%clk 0:00:20.1]} 41... Rxb2+ {[%clk 0:00:48.2]} 42. Ka3 {[%clk 0:00:21.4]}
42... a5 {[%clk 0:00:49.3]} 43. Ka4 {[%clk 0:00:21.4]} 43... Ra2+ {[%clk
0:00:49]} 44. Kb5 {[%clk 0:00:22.4]} 44... Rfb2 {[%clk 0:00:49.7]} 45. Ka6
{[%clk 0:00:22]} 45... Ra3 {[%clk 0:00:28.2]} 46. c6 {[%clk 0:00:16.1]} 46...
Raxb3 {[%clk 0:00:29.6]} 47. c7 {[%clk 0:00:17.2]} 47... Rxb7 {[%clk 0:00:30.6]}
48. c8=Q {[%clk 0:00:16.3]} 48... R2b6+ {[%clk 0:00:29.3]} 49. Kxa5 {[%clk
0:00:17.5]} 49... Kxd6 {[%clk 0:00:21.4]} 50. Qd8+ {[%clk 0:00:16.3]} 50... Ke5
{[%clk 0:00:22.9]} 51. Qg5+ {[%clk 0:00:17.7]} 51... Kd4 {[%clk 0:00:21.6]} 52.
Qf4+ {[%clk 0:00:18.8]} 52... Kd5 {[%clk 0:00:22.7]} 53. Qd2+ {[%clk 0:00:19.9]}
53... Kc6 {[%clk 0:00:22]} 54. Qc3+ {[%clk 0:00:20.2]} 54... Kd7 {[%clk
0:00:23.3]} 55. Qg7+ {[%clk 0:00:20.4]} 55... Kc8 {[%clk 0:00:20.7]} 56. Qf8+
{[%clk 0:00:20.4]} 56... Kc7 {[%clk 0:00:22.1]} 57. Qe7+ {[%clk 0:00:21.6]}
57... Kb8 {[%clk 0:00:22.4]} 58. Qd8+ {[%clk 0:00:20.7]} 58... Ka7 {[%clk
0:00:23.2]} 59. Qd4 {[%clk 0:00:22.1]} 59... e5 {[%clk 0:00:22]} 60. Qe3 {[%clk
0:00:22.5]} 60... Ka8 {[%clk 0:00:21.3]} 61. h5 {[%clk 0:00:18.5]} 61... Rb3
{[%clk 0:00:19]} 62. Qc5 {[%clk 0:00:04.3]} 62... Ra7+ {[%clk 0:00:16.3]} 63.
Qxa7+ {[%clk 0:00:04]} 63... Kxa7 {[%clk 0:00:18.2]} 64. h6 {[%clk 0:00:05.4]}
64... Rh3 {[%clk 0:00:19.7]} 0-1

[Event "*** Titled Tuesday Blitz"]
[Site "Chess.com"]
[Date "2018.07.03"]
[Round "3"]
[White "Zaven_ChessMood"]
[Black "pouya21"]
[Result "1/2-1/2"]
[WhiteElo "2881"]
[BlackElo "2649"]
[TimeControl "180+2"]
[EndTime "13:38:43 PDT"]
[Termination "Game drawn by repetition"]

1. e4 {[%clk 0:03:01.9]} 1... c5 {[%clk 0:02:59.1]} 2. Nf3 {[%clk 0:03:02.4]}
2... d6 {[%clk 0:03:00.4]} 3. Nc3 {[%clk 0:03:01.2]} 3... Nf6 {[%clk 0:03:00]}
4. g3 {[%clk 0:03:02.1]} 4... g6 {[%clk 0:02:58.3]} 5. Bg2 {[%clk 0:03:03.1]}
5... Bg7 {[%clk 0:02:59.7]} 6. O-O {[%clk 0:03:04.7]} 6... O-O {[%clk
0:03:01.2]} 7. d3 {[%clk 0:03:06.2]} 7... Nc6 {[%clk 0:03:01.3]} 8. h3 {[%clk
0:03:07.5]} 8... Rb8 {[%clk 0:03:01.7]} 9. a4 {[%clk 0:03:08]} 9... a6 {[%clk
0:02:54.9]} 10. Be3 {[%clk 0:03:08.8]} 10... e5 {[%clk 0:02:50.1]} 11. Nh2
{[%clk 0:03:07.5]} 11... b5 {[%clk 0:02:41.5]} 12. axb5 {[%clk 0:03:08.2]} 12...
axb5 {[%clk 0:02:43.4]} 13. Qd2 {[%clk 0:03:09.8]} 13... b4 {[%clk 0:02:42.2]}
14. Ne2 {[%clk 0:03:10.4]} 14... Nd4 {[%clk 0:02:37]} 15. Nxd4 {[%clk
0:03:03.8]} 15... cxd4 {[%clk 0:02:36.4]} 16. Bg5 {[%clk 0:03:05.4]} 16... Qc7
{[%clk 0:02:33.7]} 17. f4 {[%clk 0:03:02.5]} 17... Nh5 {[%clk 0:02:24.8]} 18.
Bh4 {[%clk 0:03:02.6]} 18... exf4 {[%clk 0:02:00.8]} 19. gxf4 {[%clk 0:03:03]}
19... f5 {[%clk 0:02:02.3]} 20. Rae1 {[%clk 0:03:01.3]} 20... b3 {[%clk
0:02:00.1]} 21. cxb3 {[%clk 0:03:00.7]} 21... fxe4 {[%clk 0:01:40.2]} 22. Rxe4
{[%clk 0:02:58.7]} 22... Nf6 {[%clk 0:01:30.3]} 23. Re2 {[%clk 0:02:59.5]} 23...
Bf5 {[%clk 0:01:28]} 24. Nf3 {[%clk 0:02:52.6]} 24... Rxb3 {[%clk 0:01:18.6]}
25. Ne1 {[%clk 0:02:49.3]} 25... Rb5 {[%clk 0:01:14.6]} 26. Bxf6 {[%clk
0:02:36.3]} 26... Bxf6 {[%clk 0:01:14.9]} 27. Kh2 {[%clk 0:02:32.1]} 27... Rfb8
{[%clk 0:01:14.1]} 28. Be4 {[%clk 0:02:26.7]} 28... Bxe4 {[%clk 0:00:55.8]} 29.
dxe4 {[%clk 0:02:27.6]} 29... Rxb2 {[%clk 0:00:57.2]} 30. Qxb2 {[%clk
0:02:27.8]} 30... Rxb2 {[%clk 0:00:59.1]} 31. Rxb2 {[%clk 0:02:29]} 31... d3
{[%clk 0:00:59.1]} 32. Rd2 {[%clk 0:02:25.5]} 32... Bc3 {[%clk 0:01:00]} 33. Rg2
{[%clk 0:02:19.4]} 33... Qc4 {[%clk 0:00:54.5]} 34. Nf3 {[%clk 0:02:07.7]} 34...
d2 {[%clk 0:00:39.4]} 35. Rd1 {[%clk 0:02:04]} 35... Qxe4 {[%clk 0:00:36.4]} 36.
Nxd2 {[%clk 0:01:49.8]} 36... Qxf4+ {[%clk 0:00:37.2]} 37. Kh1 {[%clk 0:01:49]}
37... Qh4 {[%clk 0:00:35.6]} 38. Nf1 {[%clk 0:01:36.2]} 38... Qxh3+ {[%clk
0:00:35.9]} 39. Kg1 {[%clk 0:01:35.2]} 39... Be5 {[%clk 0:00:36.9]} 40. Rdd2
{[%clk 0:01:32.1]} 40... Kg7 {[%clk 0:00:37.8]} 41. Rge2 {[%clk 0:01:29]} 41...
Qg4+ {[%clk 0:00:38.2]} 42. Kh1 {[%clk 0:01:29.5]} 42... Qf3+ {[%clk 0:00:32.2]}
43. Kg1 {[%clk 0:01:29.9]} 43... h5 {[%clk 0:00:33.4]} 44. Rf2 {[%clk 0:01:28]}
44... Qg4+ {[%clk 0:00:34.4]} 45. Rg2 {[%clk 0:01:29.2]} 45... Bd4+ {[%clk
0:00:33.7]} 46. Kh1 {[%clk 0:01:30]} 46... Qh3+ {[%clk 0:00:33.2]} 47. Nh2
{[%clk 0:01:28.6]} 47... Be5 {[%clk 0:00:34.2]} 48. Kg1 {[%clk 0:01:26.9]} 48...
Qe3+ {[%clk 0:00:33.4]} 49. Kf1 {[%clk 0:01:26.8]} 49... h4 {[%clk 0:00:32.4]}
50. Rgf2 {[%clk 0:00:55.8]} 50... Qh3+ {[%clk 0:00:27.1]} 51. Kg1 {[%clk
0:00:54.2]} 51... Qg3+ {[%clk 0:00:27.8]} 52. Kf1 {[%clk 0:00:54.3]} 52... Qh3+
{[%clk 0:00:21.4]} 53. Kg1 {[%clk 0:00:54.8]} 53... Qe3 {[%clk 0:00:21.3]} 54.
Kf1 {[%clk 0:00:47.1]} 54... Bg3 {[%clk 0:00:21.8]} 55. Rfe2 {[%clk 0:00:38.4]}
55... Qf4+ {[%clk 0:00:22.9]} 56. Kg1 {[%clk 0:00:35.9]} 56... Bxh2+ {[%clk
0:00:24.1]} 57. Rxh2 {[%clk 0:00:36.3]} 57... g5 {[%clk 0:00:24.8]} 58. Rhf2
{[%clk 0:00:36.8]} 58... Qg3+ {[%clk 0:00:25.5]} 59. Rg2 {[%clk 0:00:37.5]}
59... Qe3+ {[%clk 0:00:26.7]} 60. Kh2 {[%clk 0:00:37.3]} 60... h3 {[%clk
0:00:26.1]} 61. Rge2 {[%clk 0:00:36.1]} 61... Qf3 {[%clk 0:00:24.5]} 62. Rf2
{[%clk 0:00:37.1]} 62... Qe3 {[%clk 0:00:25.7]} 63. Rfe2 {[%clk 0:00:35.6]}
63... Qc3 {[%clk 0:00:16.5]} 64. Rxd6 {[%clk 0:00:32.4]} 64... Qc7 {[%clk
0:00:12.6]} 65. Re6 {[%clk 0:00:29.6]} 65... g4 {[%clk 0:00:13.6]} 66. Kg3
{[%clk 0:00:26.9]} 66... Kf7 {[%clk 0:00:14.9]} 67. Rh6 {[%clk 0:00:27.2]} 67...
Kg7 {[%clk 0:00:13]} 68. Rg6+ {[%clk 0:00:25.5]} 68... Kh7 {[%clk 0:00:13.9]}
69. Rh6+ {[%clk 0:00:23.9]} 69... Kg7 {[%clk 0:00:14.8]} 70. Rg6+ {[%clk
0:00:25.3]} 70... Kh7 {[%clk 0:00:16.1]} 71. Rh6+ {[%clk 0:00:26.6]} 71... Kg7
{[%clk 0:00:17.3]} 1/2-1/2